fUST/lending_fUST_20251031
["ID","MTS","AMOUNT","RATE_DAILY","PERIOD"]
[392736751,1761897032963,-151.0,0.00031654,2]
[392736753,1761897032972,-25.50084261,0.00031654,2]
[392736766,1761897033078,-125.49915739,0.00031654,2]
[392736768,1761897033087,-151.0,0.00031654,2]
[392736770,1761897033096,-151.0,0.00031654,2]
[392736772,1761897033105,-151.0,0.00031654,2]
[392736774,1761897033114,-151.0,0.00031654,2]
[392736776,1761897033123,-151.0,0.00031654,2]
[392736777,1761897033132,-55.45084261,0.00031654,2]
[392736780,1761897033143,-95.54915739,0.00031654,2]
[392736782,1761897033152,-400.0,0.00031672,2]
[392736784,1761897033161,-1531.0,0.00031672,3]
[392736786,1761897033170,-3751.53361896,0.00031673,2]
[392736788,1761897033181,-3366.52882872,0.00031673,2]
[392736796,1761897033251,-9117.55319872,0.00031673,2]
[392736798,1761897033260,-999.0,0.00031853,2]
[392736800,1761897033268,-231.0,0.0003189,2]
[392736802,1761897033278,-373.30679705,0.000319,2]
[392736804,1761897033288,-214.11113255,0.000319,2]
[392736806,1761897033298,-426.63633949,0.000319,2]
[392736808,1761897033308,-385.01463856,0.000319,2]
[392736810,1761897033317,-364.31581922,0.00031929,2]
[392736812,1761897033326,-154.672869,0.00031946,31]
[392736814,1761897033335,-601.41,0.00031947,4]
[392736816,1761897033344,-1359.0774221,0.00031948,2]
[392736818,1761897033353,-309.0,0.00032053,2]
[392736820,1761897033362,-500.0,0.00032113,4]
[392736822,1761897033372,-500.0,0.00032114,2]
[392736824,1761897033381,-3271.9748136,0.00032114,2]
[392736826,1761897033390,-151.0,0.00032114,2]
[392736828,1761897033399,-151.0,0.00032114,2]
[392736830,1761897033408,-151.0,0.00032114,2]
[392736832,1761897033417,-151.0,0.00032114,2]
[392736834,1761897033426,-1327.312705,0.00032114,31]
[392736836,1761897033435,-1327.312705,0.00032114,31]
[392736838,1761897033444,-1327.312705,0.00032114,31]
[392736840,1761897033454,-1327.312705,0.00032114,31]
[392736842,1761897033463,-178.0,0.00032259,2]
[392736844,1761897033472,-177.0,0.00032272,2]
[392736846,1761897033481,-223.80777794,0.00032314,3]
[392736848,1761897033490,-895.95537537,0.00032314,3]
[392736850,1761897033501,-236.09722177,0.00032388,2]
[392736852,1761897033510,-151.0,0.00032399,31]
[392736854,1761897033519,-165.420551,0.00032399,31]
[392736856,1761897033528,-160.46421791,0.00032525,3]
[392736858,1761897033539,-300.0,0.00032537,30]
[392736860,1761897033549,-300.0,0.00032566,30]
[392736862,1761897033559,-502.57491734,0.00032573,5]
[392736864,1761897033569,-500.0,0.00032573,5]
[392736866,1761897033579,-158.76562063,0.00032573,5]
[392736868,1761897033588,-500.0,0.00032573,5]
[392736870,1761897033597,-500.0,0.00032573,2]
[392736872,1761897033606,-157.94631999,0.00032573,5]
[392736874,1761897033617,-500.0,0.00032573,5]
[392736876,1761897033626,-285.6406999,0.00032573,5]
[392736878,1761897033636,-500.0,0.00032573,5]
[392736880,1761897033645,-501.0185351,0.00032573,5]
[392736882,1761897033654,-500.0,0.00032573,5]
[392736884,1761897033663,-501.1527927,0.00032573,5]
[392736886,1761897033673,-575.54131384,0.00032573,5]
[392736888,1761897033682,-500.0,0.00032573,5]
[392736890,1761897033692,-500.0,0.00032573,5]
[392736892,1761897033701,-500.0,0.00032573,5]
[392736894,1761897033710,-500.0,0.00032573,3]
[392736895,1761897033720,-503.05013015,0.00032573,5]
[392736896,1761897033731,-500.0,0.00032573,5]
[392736897,1761897033747,-500.0,0.00032573,5]
[392736898,1761897033756,-500.0,0.00032581,2]
[392736900,1761897033766,-500.0,0.00032581,2]
[392736902,1761897033775,-285.54358206,0.00032581,2]
[392736903,1761897033785,-151.0,0.00032582,2]
[392736904,1761897033793,-151.0,0.00032582,2]
[392736905,1761897033803,-151.0,0.00032582,2]
[392736906,1761897033812,-151.0,0.00032582,2]
[392736907,1761897033822,-151.0,0.00032582,2]
[392736908,1761897033831,-151.0,0.00032582,2]
[392736909,1761897033840,-254.307904,0.00032582,2]
[392736910,1761897033849,-1327.312705,0.00032582,31]
[392736911,1761897033858,-1327.312705,0.00032582,31]
[392736912,1761897033953,-1327.312705,0.00032582,31]
[392736913,1761897033964,-1327.312705,0.00032582,31]
[392736914,1761897033974,-1327.312705,0.00032582,31]
[392736915,1761897033983,-1327.312705,0.00032582,31]
[392736916,1761897033992,-1327.312705,0.00032582,31]
[392736917,1761897034001,-1327.312705,0.00032582,31]
[392736918,1761897034015,-151.0,0.00032584,31]
[392736919,1761897034024,-151.0,0.00032584,31]
[392736920,1761897034035,-300.0,0.00032585,30]
[392736921,1761897034044,-300.0,0.00032585,30]
[392736922,1761897034053,-151.0,0.00032585,31]
[392736923,1761897034063,-151.0,0.00032585,2]
[392736924,1761897034073,-151.0,0.00032585,2]
[392736925,1761897034082,-151.0,0.00032585,2]
[392736926,1761897034091,-1327.312705,0.00032585,31]
[392736927,1761897034100,-1327.312705,0.00032585,31]
[392736928,1761897034109,-1327.312705,0.00032585,31]
[392736929,1761897034123,-1327.312705,0.00032585,31]
[392736930,1761897034137,-1327.312705,0.00032585,31]
[392736931,1761897034146,-1327.312705,0.00032585,31]
[392736932,1761897034154,-1327.312705,0.00032585,31]
[392736933,1761897034163,-1327.312698,0.00032585,31]
[392736934,1761897034173,-300.0,0.00032586,30]
[392736935,1761897034182,-300.0,0.00032586,30]
[392736936,1761897034191,-300.0,0.00032586,30]
[392736937,1761897034201,-300.0,0.00032586,30]
[392736938,1761897034211,-300.0,0.00032586,30]
[392736939,1761897034221,-300.0,0.00032586,30]
[392736940,1761897034230,-151.0,0.00032586,2]
[392736941,1761897034240,-151.0,0.00032586,2]
[392736942,1761897034249,-151.0,0.00032586,2]
[392736943,1761897034259,-209.49796862,0.00032597,2]
[392736944,1761897034268,-309.0,0.00032616,2]
[392736945,1761897034277,-312.11258684,0.00032626,2]
[392736946,1761897034288,-951.91199266,0.00032627,2]
[392736947,1761897034299,-167.0,0.00032656,120]
[392736948,1761897034308,-309.0,0.00032776,7]
[392736949,1761897034318,-308.0,0.0003283,2]
[392736950,1761897034327,-317.40780589,0.00032836,2]
[392736951,1761897034336,-151.0,0.00032877,31]
[392736952,1761897034345,-502.43931167,0.00032888,5]
[392736953,1761897034355,-501.61930644,0.00032888,5]
[392736954,1761897034365,-500.89708272,0.00033062,5]
[392736955,1761897034374,-500.0,0.00033062,5]
[392736956,1761897034383,-504.23985669,0.00033062,5]
[392736957,1761897034392,-502.59270574,0.00033062,5]
[392736958,1761897034404,-500.0,0.00033062,5]
[392736959,1761897034413,-500.0,0.00033062,5]
[392736960,1761897034423,-500.0,0.00033062,5]
[392736961,1761897034432,-500.0,0.00033062,5]
[392736962,1761897034442,-500.0,0.00033062,5]
[392736963,1761897034451,-177.0,0.00033104,7]
[392736964,1761897034461,-831.55,0.00033111,10]
[392736965,1761897034471,-1000.0,0.00033121,5]
[392736966,1761897034480,-501.303134,0.00033121,5]
[392736967,1761897034490,-1000.0,0.00033121,2]
[392736968,1761897034499,-1000.0,0.00033121,5]
[392736969,1761897034508,-1000.0,0.00033121,5]
[392736970,1761897034517,-727.29463456,0.00033121,5]
[392736971,1761897034527,-1000.0,0.00033121,5]
[392736972,1761897034537,-1000.0,0.00033121,5]
[392736973,1761897034546,-1003.21591301,0.00033121,5]
[392736974,1761897034556,-1000.0,0.00033121,5]
[392736975,1761897034565,-1000.0,0.00033121,5]
[392736976,1761897034574,-177.0,0.0003314,2]
[392736977,1761897034582,-240.650784,0.00033165,2]
[392736978,1761897034592,-527.0348167,0.00033376,2]
[392736979,1761897034601,-2108.0574431,0.000335,2]
[392736980,1761897034610,-308.0,0.0003351,2]
[392736981,1761897034619,-178.0,0.00033555,2]
[392736982,1761897034628,-308.0,0.00033574,2]
[392736983,1761897034637,-1000.0,0.00033609,5]
[392736984,1761897034646,-454.08212775,0.00033609,5]
[392736985,1761897034655,-1000.0,0.00033609,5]
[392736986,1761897034664,-1000.0,0.00033609,5]
[392736987,1761897034673,-1131.36083051,0.00033609,5]
[392736988,1761897034682,-1000.0,0.00033609,5]
[392736989,1761897034691,-229.0,0.00033611,2]
[392736990,1761897034700,-308.0,0.00033619,2]
[392736991,1761897034708,-167.0,0.00033652,120]
[392736992,1761897034717,-1500.0,0.00033668,5]
[392736993,1761897034727,-857.29408391,0.00033668,2]
[392736994,1761897034735,-1026.12172846,0.00033668,5]
[392736995,1761897034745,-1004.24569045,0.00033668,5]
[392736996,1761897034754,-1507.02977373,0.00033668,5]
[392736997,1761897034762,-1500.0,0.00033668,5]
[392736998,1761897034771,-1500.0,0.00033668,5]
[392736999,1761897034780,-1127.28035488,0.00033668,5]
[392737000,1761897034789,-168.0,0.00033762,2]
[392737001,1761897034798,-550.4394886,0.0003385,2]
[392737002,1761897034806,-2002.14657475,0.0003387,2]
[392737003,1761897034815,-258.0,0.0003389,120]
[392737004,1761897034824,-19305.8080707,0.00033894,2]
[392737005,1761897034833,-308.0,0.00033916,2]
[392737006,1761897034842,-483.11217096,0.00034,2]
[392737007,1761897034850,-560.0,0.00034077,2]
[392737008,1761897034859,-324.9177262,0.00034123,2]
[392737009,1761897034868,-344.36,0.00034147,3]
[392737010,1761897034876,-550.4394886,0.00034148,2]
[392737011,1761897034885,-1500.0,0.00034157,5]
[392737012,1761897034894,-1500.0,0.00034157,5]
[392737013,1761897034902,-1500.0,0.00034157,5]
[392737014,1761897034911,-1500.0,0.00034157,5]
[392737015,1761897034920,-2000.0,0.00034216,5]
[392737016,1761897034929,-2000.0,0.00034216,5]
[392737017,1761897034942,-2000.0,0.00034216,5]
[392737018,1761897034950,-301.6,0.00034247,2]
[392737019,1761897034959,-830.4409052,0.00034417,7]
[392737020,1761897034968,-163.78829686,0.00034605,2]
[392737021,1761897034976,-1135.53412834,0.00034705,5]
[392737022,1761897034985,-2000.0,0.00034705,5]
[392737023,1761897034994,-1805.63426462,0.00034705,5]
[392737024,1761897035003,-2000.0,0.00034705,5]
[392737025,1761897035012,-1006.95548307,0.00034764,5]
[392737026,1761897035021,-1013.25927861,0.00034764,5]
[392737027,1761897035030,-1000.0,0.00034764,5]
[392737028,1761897035040,-319.0,0.00034801,7]
[392737029,1761897035049,-362.75177816,0.00034848,2]
[392737030,1761897035058,-403.89093407,0.00034939,2]
[392737031,1761897035067,-385.10484148,0.00034994,2]
[392737032,1761897035077,-1000.0,0.00035,9]
[392737033,1761897035086,-150.0,0.00035,30]
[392737034,1761897035095,-300.0,0.00035001,30]
[392737035,1761897035105,-300.0,0.00035001,30]
[392737036,1761897035114,-300.0,0.00035001,30]
[392737037,1761897035123,-300.0,0.00035001,30]
[392737038,1761897035133,-300.0,0.00035001,30]
[392737039,1761897035142,-520.41950048,0.00035085,2]
[392737040,1761897035151,-316.69562048,0.00035147,2]
[392737041,1761897035160,-318.0,0.00035221,7]
[392737042,1761897035168,-2500.0,0.00035253,5]
[392737043,1761897035177,-1006.55581394,0.00035253,5]
[392737044,1761897035187,-936.95078525,0.00035345,2]
[392737045,1761897035195,-163.78829686,0.00035417,2]
[392737046,1761897035204,-318.0,0.00035444,7]
[392737047,1761897035213,-1005.508919,0.000357,20]
[392737048,1761897035222,-2168.0,0.00035762,2]
[392737049,1761897035231,-984.0,0.00035762,2]
[392737050,1761897035240,-633.0,0.00035762,2]
[392737051,1761897035249,-3033.05225721,0.00035801,5]
[392737052,1761897035258,-550.4394886,0.00035809,3]
[392737053,1761897035267,-13943.74936527,0.00035819,2]
[392737054,1761897035277,-389.2579663,0.00035873,5]
[392737055,1761897035286,-500.0,0.00035873,5]
[392737056,1761897035295,-500.0,0.00035873,5]
[392737057,1761897035304,-500.25518497,0.00035873,5]
[392737058,1761897035313,-501.42457609,0.00035873,5]
[392737059,1761897035322,-500.25076442,0.00035873,5]
[392737060,1761897035331,-500.25780477,0.00035873,2]
[392737061,1761897035340,-158.3535538,0.00035873,3]
[392737062,1761897035349,-500.4898548,0.00035873,5]
[392737063,1761897035359,-259.72916284,0.00035873,5]
[392737064,1761897035368,-158.76086745,0.00035873,5]
[392737065,1761897035378,-158.88513691,0.00035873,5]
[392737066,1761897035386,-465.52262997,0.00035873,4]
[392737067,1761897035395,-500.16214365,0.00035873,5]
[392737068,1761897035404,-158.35694609,0.00035873,2]
[392737069,1761897035414,-160.43247409,0.00035873,5]
[392737070,1761897035423,-500.0,0.00035873,5]
[392737071,1761897035433,-500.43672539,0.00035873,5]
[392737072,1761897035443,-500.0,0.00035873,5]
[392737073,1761897035452,-500.30027301,0.00035873,5]
[392737074,1761897035461,-501.85740056,0.00035873,4]
[392737075,1761897035471,-300.9078679,0.00035873,5]
[392737076,1761897035480,-500.16519891,0.00035873,5]
[392737077,1761897035489,-382.52731614,0.00035873,5]
[392737100,1761897044346,-279.95444611,0.00032113,2]
[392737101,1761897044356,-500.0,0.00032113,2]
[392737102,1761897044365,-364.74665814,0.00032113,2]
[392737103,1761897044374,-500.0,0.00032113,2]
[392737104,1761897044383,-500.0,0.00032113,2]
[392737105,1761897044393,-500.0,0.00032113,2]
[392737106,1761897044402,-500.0,0.00032113,2]
[392737107,1761897044412,-500.0,0.00032113,2]
[392737108,1761897044422,-500.0,0.00032113,2]
[392737109,1761897044431,-500.0,0.00032113,2]
[392737110,1761897044440,-500.0,0.00032113,2]
[392737111,1761897044449,-500.0,0.00032113,2]
[392737112,1761897044458,-500.0,0.00032113,2]
[392737113,1761897044467,-500.0,0.00032113,2]
[392737114,1761897044476,-500.0,0.00032113,2]
[392737115,1761897044486,-500.0,0.00032113,2]
[392737116,1761897044495,-324.74077707,0.00032113,2]
[392737117,1761897044504,-262.42454563,0.00032113,2]
[392737118,1761897044513,-194.62078789,0.00032113,2]
[392737119,1761897044523,-200.43254802,0.00032877,7]
[392737120,1761897044532,-118.53883228,0.00035873,5]
[392737121,1761897044541,-500.0,0.00035873,5]
[392737122,1761897044551,-502.36699767,0.00035873,5]
[392737123,1761897044560,-500.0,0.00035873,5]
[392737125,1761897044570,-160.07333823,0.00035873,5]
[392737126,1761897044579,-286.32993582,0.00035873,5]
[392737127,1761897044590,-219.51611282,0.00035873,5]
[392737128,1761897044599,-501.36100768,0.00035873,5]
[392737129,1761897044608,-160.43422173,0.00035873,5]
[392737130,1761897044617,-502.60787535,0.00035873,5]
[392737131,1761897044627,-504.59372419,0.00035873,5]
[392737132,1761897044637,-158.65059114,0.00035873,5]
[392737133,1761897044646,-559.50858843,0.00035873,5]
[392737134,1761897044655,-158.77957255,0.00035873,5]
[392737135,1761897044664,-236.56606073,0.00035873,5]
[392737136,1761897044673,-529.759785,0.00035873,5]
[392737137,1761897044683,-500.43125913,0.00035873,5]
[392737138,1761897044692,-171.80643793,0.00035873,5]
[392737139,1761897044701,-500.0,0.00035873,5]
[392737140,1761897044711,-501.44701009,0.00035873,5]
[392737141,1761897044720,-500.30677909,0.00035873,5]
[392737142,1761897044729,-164.76654452,0.00035873,5]
[392737143,1761897044739,-500.0,0.00035873,5]
[392737144,1761897044748,-501.64887644,0.00035873,5]
[392737145,1761897044758,-502.00623043,0.00035873,5]
[392737146,1761897044767,-500.33420059,0.00035873,5]
[392737147,1761897044776,-500.0,0.00035873,5]
[392737148,1761897044785,-500.44819652,0.00035873,5]
[392737149,1761897044795,-502.50133595,0.00035873,5]
[392737150,1761897044804,-502.34294087,0.00035873,5]
[392737151,1761897044814,-501.5484112,0.00035873,5]
[392737153,1761897044823,-520.77494748,0.00035873,5]
[392737154,1761897044832,-501.29832249,0.00035873,5]
[392737155,1761897044842,-500.0,0.00035873,5]
[392737156,1761897044851,-500.0,0.00035873,5]
[392737157,1761897044860,-500.47798754,0.00035873,5]
[392737158,1761897044869,-285.0,0.0003589,120]
[392737159,1761897044877,-200.0,0.00035899,10]
[392737160,1761897044886,-210.5257945,0.00035899,10]
[392737161,1761897044895,-10000.0,0.00036,10]
[392737162,1761897044904,-200.0,0.00036,30]
[392737163,1761897044913,-1104.75585875,0.0003601,2]
[392737176,1761897065011,150.0,0.0002589,2]
[392737177,1761897217340,96725.536715,0.000301,120]
[392737178,1761897379061,150.0,0.0002589,2]
[392737179,1761897481393,1829.53,0.000201,2]
[392737180,1761897481712,1829.53,0.000203,2]
[392737181,1761897482033,1829.53,0.000205,2]
[392737182,1761897482391,1829.53,0.000208,2]
[392737183,1761897482734,1829.53,0.00021,2]
[392737184,1761897483025,552.36,0.000212,2]
[392737185,1761897483048,1277.17,0.000212,2]
[392737186,1761897483362,1829.53,0.000214,2]
[392737187,1761897483672,1829.53,0.000217,2]
[392737188,1761897483976,1829.53,0.000219,2]
[392737189,1761897541172,182.95,0.000201,2]
[392737190,1761897541470,182.95,0.000203,2]
[392737191,1761897541755,182.95,0.000205,2]
[392737192,1761897542053,182.95,0.000208,2]
[392737193,1761897542354,182.95,0.00021,2]
[392737194,1761897542667,182.95,0.000212,2]
[392737195,1761897542972,182.95,0.000214,2]
[392737196,1761897543316,182.95,0.000217,2]
[392737197,1761897543590,182.95,0.000219,2]
[392737198,1761897692180,252.51764362,0.0002589,2]
[392737213,1761898114405,207.855065,0.00013699,2]
[392737214,1761898114621,207.855065,0.00020187,2]
[392737230,1761898231930,-207.855065,0.00026676,2]
[392737231,1761898231940,-200.0,0.0002789,2]
[392737232,1761898231949,-194.24140933,0.00032139,3]
[392737233,1761898231959,-500.0,0.00032476,7]
[392737234,1761898231968,-207.855065,0.00033165,2]
[392737235,1761898231978,-500.0,0.00033343,7]
[392737236,1761898231987,-500.52718912,0.00033669,7]
[392737237,1761898231996,-35361.46242154,0.00034,2]
[392737240,1761898232162,-476.52,0.00034,2]
[392737261,1761898237710,-10266.34084469,0.00034,2]
[392737385,1761898240172,-2695.88992759,0.00034,2]
[392737414,1761898243052,-1451.34124112,0.00034,2]
[392737415,1761898243064,-294.98067885,0.00034,2]
[392737416,1761898243075,-300.0,0.00034,2]
[392737417,1761898243087,-711.48248578,0.00034,2]
[392737418,1761898243125,-400.22100341,0.00034,2]
[392737460,1761899224056,177.0,0.0002589,2]
[392737463,1761899271211,742.47222638,0.00025,5]
[392737464,1761899271234,10000.01,0.00025,5]
[392737465,1761899271258,10000.01,0.00025,5]
[392737466,1761899271281,10000.01,0.00025,5]
[392737467,1761899271306,10000.01,0.00025,5]
[392737468,1761899271328,10000.01,0.00025,5]
[392737469,1761899271350,10000.01,0.00025,5]
[392737470,1761899271372,10000.01,0.00025,5]
[392737471,1761899271394,10000.01,0.00025,5]
[392737472,1761899271416,9296.85474777,0.00025,5]
[392737475,1761899304819,703.15525223,0.00022,2]
[392737476,1761899304846,10000.01,0.00022,2]
[392737477,1761899304872,10000.01,0.00022,2]
[392737478,1761899304899,10000.01,0.00022,2]
[392737479,1761899304924,10000.01,0.00022,2]
[392737480,1761899304951,1150.34957815,0.00022,2]
[392737482,1761899307535,8849.66042185,0.00019,2]
[392737483,1761899307556,10000.01,0.00019,2]
[392737484,1761899307576,6319.73167864,0.00019,2]
[392737486,1761899311882,1402.2633967,0.0002,2]
[392737487,1761899314342,2278.01492466,0.000215,2]
[392737488,1761899314363,9388.9413813,0.000215,2]
[392737489,1761899317682,611.0686187,0.0002,2]
[392737490,1761899317705,3303.23018351,0.0002,2]
[392737491,1761899318044,6696.77981649,0.00022,2]
[392737492,1761899318068,2861.41839357,0.00022,2]
[392737495,1761899329252,150.0,0.00020507,2]
[392737522,1761899408431,500.0,0.000253,2]
[392737523,1761899411206,-419.49615625,0.00026396,2]
[392737524,1761899414027,-180.43184543,0.00026296,2]
[392737525,1761899414049,-101.64963876,0.00026396,2]
[392737526,1761899415551,1046.08944701,0.0002611,2]
[392737527,1761899416137,-282.08148419,0.00026396,2]
[392737528,1761899424326,-180.59434108,0.00026396,2]
[392737543,1761899431802,195.0,0.0002814,120]
[392737555,1761899432003,-200.0,0.000279,2]
[392737556,1761899432013,-300.0,0.00027999,2]
[392737557,1761899432023,-1200.0,0.00027999,2]
[392737559,1761899432031,-1423.308164,0.00028,5]
[392737563,1761899432059,-1250.8060961,0.00028,5]
[392737624,1761899433016,195.0,0.00029547,120]
[392737777,1761899437842,-7689.19648967,0.00028,5]
[392737779,1761899437851,-300.0,0.00028559,30]
[392737781,1761899437860,-300.0,0.00028559,30]
[392737783,1761899437869,-300.0,0.00028559,30]
[392737785,1761899437879,-300.0,0.00028559,30]
[392737787,1761899437887,-300.0,0.00028559,30]
[392737788,1761899437896,-300.0,0.00028559,30]
[392737790,1761899437906,-300.0,0.00028559,30]
[392737792,1761899437916,-300.0,0.00028559,30]
[392737793,1761899437926,-300.0,0.00028559,30]
[392737794,1761899437935,-300.0,0.00028559,30]
[392737795,1761899437945,-300.0,0.00028559,30]
[392737797,1761899437954,-300.0,0.00028559,30]
[392737799,1761899437963,-300.0,0.00028559,30]
[392737800,1761899437972,-300.0,0.00028559,30]
[392737802,1761899437982,-300.0,0.00028559,30]
[392737804,1761899437991,-311.65185859,0.00029657,2]
[392737806,1761899438001,-155.82592929,0.00029657,2]
[392737808,1761899438010,-267.9642307,0.0003,2]
[392737810,1761899438019,-500.0,0.00030137,30]
[392737812,1761899438029,-172.0,0.00030239,2]
[392737814,1761899438039,-267.70237096,0.00030428,7]
[392737815,1761899438051,-308.97747544,0.00030428,7]
[392737816,1761899438061,-361.0402447,0.00030987,30]
[392737817,1761899438071,-54.61908605,0.00031025,120]
[392737818,1761899438083,-140.38091395,0.00031025,120]
[392737819,1761899438093,-252.66190202,0.00031751,120]
[392737820,1761899438104,-1.33809798,0.00031751,120]
[392737821,1761899438114,-311.65185859,0.00031891,56]
[392737822,1761899438123,-281.83648581,0.000319,2]
[392737823,1761899438134,-28.73045068,0.000319,2]
[392737824,1761899438143,-155.82592929,0.00032154,110]
[392737825,1761899438153,-241.67413182,0.0003264,2]
[392737826,1761899438162,-1200.0,0.00032989,3]
[392737827,1761899438171,-467.87356531,0.0003299,2]
[392737828,1761899438180,-1569.65,0.0003299,10]
[392737829,1761899438190,-1308.05,0.0003299,10]
[392737830,1761899438199,-1090.04,0.0003299,10]
[392737831,1761899438208,-218.47881079,0.00032999,7]
[392737832,1761899438217,-500.0,0.00032999,7]
[392737833,1761899438232,-601.44134311,0.00032999,7]
[392737834,1761899438241,-500.0,0.00032999,2]
[392737835,1761899438251,-500.0,0.00032999,7]
[392737836,1761899438260,-189.05559355,0.00032999,7]
[392737930,1761899446455,-908.36,0.0003299,10]
[392737931,1761899446464,-310.94440645,0.00032999,7]
[392737932,1761899446473,-509.25407418,0.00032999,7]
[392737933,1761899446482,-500.0,0.00032999,7]
[392737934,1761899446492,-85.24151937,0.00032999,2]
[392737935,1761899458384,150.0,0.00020549,2]
[392737936,1761899460414,330.67673887,0.0002611,2]
[392737937,1761899482735,161.68885014,0.0002611,2]
[392737938,1761899522927,150.0,0.00021447,2]
[392737939,1761899523359,150.0,0.00023397,2]
[392737940,1761899523751,150.0,0.00025347,2]
[392737941,1761899536917,150.0,0.0002589,2]
[392737942,1761899543885,300.0,0.000261,2]
[392737943,1761899554778,300.0,0.000261,2]
[392737944,1761899565689,300.0,0.000261,2]
[392737945,1761899597098,150.0,0.00020595,2]
[392737946,1761899597500,150.0,0.00022467,2]
[392737947,1761899597907,150.0,0.00024339,2]
[392737949,1761899670848,150.0,0.00020617,2]
[392737950,1761899671253,150.0,0.00022492,2]
[392737951,1761899671703,150.0,0.00024366,2]
[392737952,1761899699820,8050.01,0.00019,3]
[392737953,1761899699975,10000.01,0.00019,3]
[392737954,1761899699998,4949.98,0.00019,3]
[392737956,1761899743264,150.0,0.00020512,2]
[392737957,1761899744469,150.0,0.00022377,2]
[392737958,1761899744888,150.0,0.00024242,2]
[392737959,1761899745474,150.0,0.00026106,2]
[392737960,1761899794867,501.84138865,0.000253,2]
[392737961,1761899814938,150.0,0.00020571,2]
[392737962,1761899815339,150.0,0.00022441,2]
[392737963,1761899815743,150.0,0.00024311,2]
[392737964,1761899850820,150.0,0.00025693,2]
[392737965,1761899869105,500.0,0.00013699,2]
[392737966,1761899869592,500.0,0.00013973,2]
[392737967,1761899870096,500.0,0.00014247,2]
[392737968,1761899870607,500.0,0.00014521,2]
[392737969,1761899871107,500.0,0.00014795,2]
[392737970,1761899871607,517.97,0.00015068,2]
[392737971,1761899881409,150.0,0.0002057,2]
[392737972,1761899881820,150.0,0.0002244,2]
[392737973,1761899882227,30.21861135,0.0002431,2]
[392737974,1761899882250,119.78138865,0.0002431,2]
[392738674,1761900164831,150.0,0.0002589,2]
[392738816,1761900169018,-40162.0,0.0003715,120]
[392740439,1761900221099,-177.0,0.0002789,2]
[392740441,1761900221126,-224.419595,0.00028652,2]
[392740443,1761900221153,-298.87245985,0.00028712,30]
[392740445,1761900221181,-160.0,0.00029,10]
[392740447,1761900221209,-204.0,0.0002989,2]
[392740449,1761900221237,-875.0,0.00030352,2]
[392740450,1761900221264,-400.0,0.00030352,2]
[392740452,1761900221293,-151.0,0.00030353,2]
[392740454,1761900221321,-151.0,0.00030353,2]
[392740456,1761900221349,-151.0,0.00030353,2]
[392740458,1761900221378,-151.0,0.00030353,2]
[392740460,1761900221408,-151.0,0.00030353,2]
[392740462,1761900221436,-151.0,0.00030353,2]
[392740464,1761900221466,-151.0,0.00030353,2]
[392740466,1761900221495,-151.0,0.00030353,2]
[392740468,1761900221528,-151.0,0.00030353,2]
[392740470,1761900221558,-151.0,0.00030353,2]
[392740472,1761900221587,-151.0,0.00030353,2]
[392740474,1761900221615,-151.0,0.00030353,2]
[392740476,1761900221643,-151.0,0.00030353,2]
[392740478,1761900221674,-151.0,0.00030353,2]